bitfinex-derivatives/quotes_BNBF0:USTF0_20250211
["timestamp","ask_amount","ask_price","bid_price","bid_amount"]
[1739313812744,0.656,641.12,640.41,1.13057641]
[1739313812946,0.656,641.12,640.42,0.31229505]
[1739313813947,1.3464701,641.11,640.42,0.31229505]
[1739313814149,0.656,641.12,640.42,0.31229505]
[1739313814741,1.34628227,641.11,640.42,0.31229505]
[1739313814946,0.656,641.12,640.42,0.31229505]
[1739313815848,0.656,641.12,640.47,1.13057641]
[1739313816049,0.656,641.12,640.48,0.3122658]
[1739313817450,0.656,641.12,640.49,1.13057641]
[1739313817648,0.656,641.12,640.5,0.31225604]
[1739313818048,0.656,641.12,640.5,1.94071984]
[1739313818851,0.656,641.12,640.5,0.31225604]
[1739313819451,1.34570547,641.11,640.5,0.31225604]
[1739313819649,0.656,641.12,640.5,0.31225604]
[1739313819952,1.34568479,641.11,640.5,0.31225604]
[1739313820151,1.34571041,641.1,640.5,0.31225604]
[1739313820350,0.656,641.12,640.5,0.31225604]
[1739313820646,1.34556455,641.11,640.5,0.31225604]
[1739313820845,1.34556455,641.1,640.5,0.31225604]
[1739313821045,0.656,641.12,640.5,0.31225604]
[1739313821247,1.34555573,641.11,640.5,0.31225604]
[1739313821547,0.656,641.12,640.5,0.31225604]
[1739313821548,1.34555573,641.1,640.5,0.31225604]
[1739313821749,0.656,641.12,640.5,0.31225604]
[1739313821944,1.34540844,641.11,640.5,0.31225604]
[1739313822151,1.34540844,641.1,640.5,0.31225604]
[1739313822451,1.34540844,641.09,640.5,0.31225604]
[1739313822654,1.34540844,641.08,640.5,0.31225604]
[1739313822850,1.34540844,641.07,640.5,0.31225604]
[1739313823147,0.656,641.12,640.5,0.31225604]
[1739313823351,1.34516027,641.11,640.5,0.31225604]
[1739313823553,1.34512306,641.1,640.5,0.31225604]
[1739313823751,1.34512306,641.09,640.5,0.31225604]
[1739313823953,1.34512306,641.08,640.5,0.31225604]
[1739313824151,1.34512306,641.07,640.5,0.31225604]
[1739313824453,1.34512306,641.06,640.5,0.31225604]
[1739313824650,1.34512306,641.05,640.5,0.31225604]
[1739313824848,1.34512306,641.04,640.5,0.31225604]
[1739313825049,1.34498401,641.03,640.5,0.31225604]
[1739313825245,1.34498401,641.02,640.5,0.31225604]
[1739313825451,1.34498401,641.01,640.51,1.13057641]
[1739313825652,1.34498401,641.0,640.51,1.13057641]
[1739313825852,1.34498401,640.99,640.51,1.13057641]
[1739313826151,1.3445121,640.98,640.51,1.13057641]
[1739313826346,1.008,641.14,640.51,1.13057641]
[1739313826550,1.34448218,641.13,640.51,1.13057641]
[1739313826749,1.34448218,641.12,640.51,1.13057641]
[1739313826946,1.34448218,641.11,640.51,1.13057641]
[1739313827250,2.00048218,641.1,640.51,1.13057641]
[1739313827447,1.34448218,641.09,640.5,0.31225604]
[1739313827648,1.34448218,641.08,640.5,0.31225604]
[1739313827852,0.656,641.1,640.5,0.31225604]
[1739313827853,1.34448218,641.07,640.5,0.31225604]
[1739313828051,1.34448218,641.06,640.5,0.31225604]
[1739313828352,1.34448218,641.05,640.5,0.31225604]
[1739313828553,1.34448218,641.04,640.5,0.31225604]
[1739313828754,1.34448218,641.03,640.5,0.31225604]
[1739313828955,1.34448218,641.02,640.5,0.31225604]
[1739313829152,1.34448218,641.01,640.5,0.31225604]
[1739313829455,1.34448218,641.0,640.5,0.31225604]
[1739313829753,1.34448218,640.99,640.5,0.31225604]
[1739313830053,1.34448218,640.98,640.5,0.31225604]
[1739313830252,1.34448218,640.97,640.5,0.31225604]
[1739313830455,1.34448218,640.96,640.5,0.31225604]
[1739313830653,0.656,641.1,640.5,0.31225604]
[1739313830848,1.3434219,641.09,640.5,0.31225604]
[1739313831052,1.3434219,641.08,640.5,0.31225604]
[1739313831249,1.3434219,641.07,640.5,0.31225604]
[1739313831453,0.656,641.1,640.5,0.31225604]
[1739313831454,1.3434219,641.06,640.5,0.31225604]
[1739313831649,0.656,641.1,640.5,0.31225604]
[1739313831853,1.34324383,641.09,640.5,0.31225604]
[1739313832048,1.34324383,641.08,640.5,0.31225604]
[1739313832350,1.34324383,641.07,640.5,0.31225604]
[1739313832649,1.34324383,641.06,640.5,0.31225604]
[1739313832854,1.34324383,641.05,640.5,0.31225604]
[1739313833051,1.34324383,641.04,640.5,0.31225604]
[1739313833255,1.34324383,641.03,640.5,0.31225604]
[1739313833555,1.34324383,641.02,640.5,0.31225604]
[1739313833857,1.34324383,641.01,640.5,0.31225604]
[1739313834057,1.34324383,641.0,640.5,0.31225604]
[1739313834256,1.34324383,640.99,640.5,0.31225604]
[1739313834457,1.34324383,640.98,640.5,0.31225604]
[1739313834757,1.34324383,640.97,640.5,0.31225604]
[1739313834957,1.34324383,640.96,640.5,0.31225604]
[1739313835153,1.34324383,640.95,640.5,0.31225604]
[1739313835451,1.34324383,640.94,640.5,0.31225604]
[1739313835656,1.34324383,640.93,640.5,0.31225604]
[1739313835854,1.34229816,640.92,640.5,0.31225604]
[1739313836055,0.656,641.1,640.5,0.31225604]
[1739313836257,1.34229812,641.09,640.5,0.31225604]
[1739313836457,1.34229812,641.08,640.5,0.31225604]
[1739313836659,1.34229812,641.07,640.5,0.31225604]
[1739313836961,1.34213557,641.06,640.5,0.31225604]
[1739313837154,0.656,641.1,640.5,0.31225604]
[1739313837155,1.34213557,641.05,640.5,0.31225604]
[1739313837357,1.34213557,641.04,640.5,0.31225604]
[1739313837554,1.34213557,641.03,640.5,0.31225604]
[1739313837761,1.34213557,641.02,640.5,0.31225604]
[1739313837955,1.34213557,641.01,640.5,0.31225604]
[1739313838156,1.34197572,641.0,640.5,0.31225604]
[1739313838353,0.656,641.1,640.5,0.31225604]
[1739313838354,1.34197572,640.99,640.5,0.31225604]
[1739313838555,1.34197572,640.98,640.5,0.31225604]
[1739313838758,1.34197572,640.97,640.5,0.31225604]
[1739313839058,1.34197572,640.96,640.5,0.31225604]
[1739313839255,1.34197572,640.95,640.5,0.31225604]
[1739313839457,1.34197572,640.94,640.5,0.31225604]
[1739313839755,1.008,641.14,640.5,0.31225604]
[1739313840461,1.99743473,641.13,640.5,0.31225604]
[1739313840658,1.34143473,641.12,640.5,0.31225604]
[1739313840963,1.34148224,641.11,640.5,0.31225604]
[1739313841261,0.656,641.13,640.5,0.31225604]
[1739313841558,1.34155932,641.12,640.5,0.31225604]
[1739313841760,0.656,641.13,640.5,0.31225604]
[1739313842057,2.45063587,641.12,640.5,0.31225604]
[1739313842255,1.109,641.12,640.5,0.31225604]
[1739313843160,1.34190557,641.11,640.5,0.31225604]
[1739313843357,1.109,641.12,640.5,0.31225604]
[1739313843662,1.3419766,641.11,640.5,0.31225604]
[1739313843861,1.34199645,641.1,640.5,0.31225604]
[1739313844058,1.109,641.12,640.5,0.31225604]
[1739313844262,1.34207186,641.11,640.5,0.31225604]
[1739313844462,1.109,641.12,640.5,0.31225604]
[1739313851572,1.109,641.12,640.51,1.13057641]
[1739313853478,1.109,641.12,640.5,0.31225604]
[1739313856177,0.656,641.13,640.5,0.31225604]
[1739313857976,1.34435031,641.12,640.5,0.31225604]
[1739313858176,0.656,641.13,640.5,0.31225604]
[1739313859786,1.34460151,641.12,640.5,0.31225604]
[1739313859982,0.656,641.13,640.5,0.31225604]
[1739313860183,1.34477597,641.12,640.5,0.31225604]
[1739313860378,0.656,641.13,640.5,0.31225604]
[1739313861684,1.34499386,641.12,640.5,0.31225604]
[1739313861882,0.656,641.13,640.5,0.31225604]
[1739313863584,1.34534637,641.12,640.5,0.31225604]
[1739313863882,0.656,641.13,640.5,0.31225604]
[1739313864078,1.34535381,641.12,640.5,0.31225604]
[1739313864283,0.656,641.13,640.5,0.31225604]
[1739313864685,1.34551729,641.12,640.5,0.31225604]
[1739313864881,0.656,641.13,640.5,0.31225604]
[1739313865082,1.3455191,641.12,640.5,0.31225604]
[1739313865284,0.656,641.13,640.5,0.31225604]
[1739313865479,1.34547975,641.12,640.5,0.31225604]
[1739313865678,1.34552946,641.11,640.5,0.31225604]
[1739313865985,1.34555719,641.1,640.5,0.31225604]
[1739313866185,1.34567583,641.09,640.5,0.31225604]
[1739313866385,1.34567583,641.08,640.5,0.31225604]
[1739313866687,1.34567583,641.07,640.5,0.31225604]
[1739313866885,0.656,641.13,640.5,0.31225604]
[1739313866886,1.34567583,641.06,640.5,0.31225604]
[1739313867085,1.34567583,641.05,640.5,0.31225604]
[1739313867286,1.34567583,641.04,640.5,0.31225604]
[1739313867486,1.34567583,641.03,640.5,0.31225604]
[1739313867687,1.34567583,641.02,640.5,0.31225604]
[1739313867891,1.34567583,641.01,640.5,0.31225604]
[1739313868084,1.34567583,641.0,640.5,0.31225604]
[1739313868287,0.656,641.13,640.5,0.31225604]
[1739313868288,1.34567583,640.99,640.5,0.31225604]
[1739313868487,1.34567583,640.98,640.5,0.31225604]
[1739313868686,1.34567583,640.97,640.5,0.31225604]
[1739313868886,1.34566721,640.96,640.5,0.31225604]
[1739313869088,1.819,641.14,640.5,0.31225604]
[1739313869288,1.34567428,641.13,640.5,0.31225604]
[1739313869488,1.34567428,641.12,640.5,0.31225604]
[1739313869688,1.34567428,641.11,640.5,0.31225604]
[1739313869890,1.34567428,641.1,640.5,0.31225604]
[1739313870090,1.34567428,641.09,640.5,0.31225604]
[1739313870390,1.34556612,641.08,640.5,0.31225604]
[1739313870590,1.34556612,641.07,640.5,0.31225604]
[1739313870788,1.34556612,641.06,640.5,0.31225604]
[1739313870991,1.34556612,641.05,640.5,0.31225604]
[1739313871193,0.656,641.12,640.5,0.31225604]
[1739313871194,1.34556612,641.04,640.5,0.31225604]
[1739313871391,1.34556612,641.03,640.5,0.31225604]
[1739313871692,1.34556612,641.02,640.5,0.31225604]
[1739313871893,1.34556612,641.01,640.5,0.31225604]
[1739313872191,1.34556612,641.0,640.5,0.31225604]
[1739313872393,0.656,641.12,640.5,0.31225604]
[1739313872590,1.34553074,641.11,640.5,0.31225604]
[1739313872895,1.34553074,641.1,640.5,0.31225604]
[1739313873096,1.34553074,641.09,640.5,0.31225604]
[1739313873396,1.34553074,641.08,640.5,0.31225604]
[1739313873690,1.34553074,641.07,640.5,0.31225604]
[1739313873995,1.34553074,641.06,640.5,0.31225604]
[1739313874197,1.34553074,641.05,640.2,1.13057641]
[1739313874396,1.34553074,641.04,640.2,1.13057641]
[1739313874593,0.656,641.12,640.2,1.13057641]
[1739313874594,1.34520815,641.03,640.2,1.13057641]
[1739313874794,1.34520815,641.02,640.2,1.13057641]
[1739313874994,1.34520815,641.01,640.38,1.13057641]
[1739313875191,1.34520815,641.0,640.38,1.13057641]
[1739313875393,1.34520815,640.99,640.38,1.13057641]
[1739313875691,1.34520815,640.98,640.38,1.13057641]
[1739313875995,1.34520815,640.97,640.38,1.13057641]
[1739313876192,1.34520815,640.96,640.38,1.13057641]
[1739313876397,1.34520815,640.95,640.38,1.13057641]
[1739313876699,1.34335653,640.94,640.38,1.13057641]
[1739313876997,1.34335653,640.93,640.38,1.13057641]
[1739313877196,1.34336187,640.92,640.38,1.13057641]
[1739313877398,1.34336187,640.91,640.38,1.13057641]
[1739313877597,1.34336187,640.9,640.38,1.13057641]
[1739313877896,0.656,641.12,640.38,1.13057641]
[1739313877897,1.34336187,640.89,640.38,1.13057641]
[1739313878095,1.34336187,640.88,640.38,1.13057641]
[1739313878298,1.34336187,640.87,639.63,1.13057641]
[1739313878598,0.656,641.12,639.65,0.31267099]
[1739313878799,1.3416252,641.11,639.65,0.31267099]
[1739313878996,1.3416252,641.1,639.65,0.31267099]
[1739313879198,1.3416252,641.09,639.65,0.31267099]
[1739313879395,1.3416252,641.08,639.65,0.31267099]
[1739313879600,1.3416252,641.07,639.65,0.31267099]
[1739313879795,1.3416252,641.06,639.65,0.31267099]
[1739313880001,1.3416252,641.05,639.65,0.31267099]
[1739313880201,1.3416252,641.04,639.65,0.31267099]
[1739313880402,1.3416252,641.03,639.65,0.31267099]
[1739313880702,1.3416252,641.02,639.65,0.31267099]
[1739313881002,1.3416252,641.01,639.65,0.31267099]
[1739313881302,1.3416252,641.0,639.65,0.31267099]
[1739313881502,1.3416252,640.99,639.65,0.31267099]
[1739313881696,1.3416252,640.98,639.65,0.31267099]
[1739313881901,1.3416252,640.97,639.65,0.31267099]
[1739313882197,1.3416252,640.96,639.65,0.31267099]
[1739313882397,1.3416252,640.95,639.65,0.31267099]
[1739313882602,1.3416252,640.94,639.65,0.31267099]
[1739313882803,1.3416252,640.93,639.65,0.31267099]
[1739313882997,1.3416252,640.92,639.65,0.31267099]
[1739313883202,1.3416252,640.91,639.65,0.31267099]
[1739313883404,1.3416252,640.9,639.65,0.31267099]
[1739313883598,1.3416252,640.89,639.65,0.31267099]
[1739313883799,1.3416252,640.88,639.65,0.31267099]
[1739313884002,1.3416252,640.87,639.65,0.31267099]
[1739313884199,1.3416252,640.86,639.65,0.31267099]
[1739313884403,1.3416252,640.85,639.65,0.31267099]
[1739313884698,1.3416252,640.84,639.65,0.31267099]
[1739313884905,1.33758138,640.83,639.65,0.31267099]
[1739313885101,1.33758138,640.82,639.65,0.31267099]
[1739313885300,1.33758138,640.81,639.65,0.31267099]
[1739313885503,1.33743857,640.8,639.65,0.31267099]
[1739313885699,1.33743857,640.79,639.65,0.31267099]
[1739313885901,1.33743857,640.78,639.65,0.31267099]
[1739313886106,1.33743857,640.77,639.65,0.31267099]
[1739313886307,1.33743857,640.76,639.65,0.31267099]
[1739313886607,1.33743857,640.75,639.66,1.63064488]
[1739313886806,1.33743857,640.74,639.67,0.31266121]
[1739313887006,1.33743857,640.73,639.67,0.31266121]
[1739313887206,1.33743857,640.72,639.67,0.31266121]
[1739313887402,1.33743857,640.71,639.67,0.31266121]
[1739313887605,1.33743857,640.7,639.67,0.31266121]
[1739313887809,1.33743857,640.69,639.67,0.31266121]
[1739313888012,1.33743857,640.68,639.67,0.31266121]
[1739313888308,1.33743857,640.67,639.67,0.31266121]
[1739313888509,1.33743857,640.66,639.67,0.31266121]
[1739313888705,1.33743857,640.65,639.67,0.31266121]
[1739313888911,1.33743857,640.64,639.67,0.31266121]
[1739313889106,1.33743857,640.63,639.67,0.31266121]
[1739313889308,1.33743857,640.62,639.67,0.31266121]
[1739313889605,1.33743857,640.61,639.67,0.31266121]
[1739313889811,1.33743857,640.6,639.67,0.31266121]
[1739313890010,1.33743857,640.59,639.67,0.31266121]
[1739313890306,1.33743857,640.58,639.67,0.31266121]
[1739313890512,1.33743857,640.57,639.67,0.31266121]
[1739313890711,1.33743857,640.56,639.67,0.31266121]
[1739313890907,1.33743857,640.55,639.67,0.31266121]
[1739313891108,0.657,640.57,639.67,0.31266121]
[1739313891309,1.33422625,640.56,639.67,0.31266121]
[1739313891514,0.657,640.57,639.67,0.31266121]
[1739313892209,1.33389085,640.56,639.67,0.31266121]
[1739313892409,0.657,640.57,639.67,0.31266121]
[1739313892607,1.33374102,640.56,639.67,0.31266121]
[1739313892809,1.33374102,640.55,639.67,0.31266121]
[1739313893007,0.657,640.57,639.67,0.31266121]
[1739313893204,1.33359171,640.56,639.67,0.31266121]
[1739313893412,1.33359171,640.55,639.67,0.31266121]
[1739313893612,0.657,640.57,639.67,0.31266121]
[1739313893813,1.33342261,640.56,639.67,0.31266121]
[1739313894015,1.33342261,640.55,639.67,0.31266121]
[1739313894212,0.657,640.57,639.67,0.31266121]
[1739313894409,1.33325834,640.56,639.67,0.31266121]
[1739313894616,0.657,640.57,639.67,0.31266121]
[1739313911637,0.657,640.57,639.79,1.13057641]
[1739313911930,0.657,640.57,639.8,0.31259768]
[1739313914037,0.657,640.57,639.91,1.13057641]
[1739313914238,0.657,640.57,639.92,0.31253906]
[1739313924650,0.657,640.57,640.21,1.13057641]
[1739313926949,0.657,640.57,640.01,1.13057641]
[1739313927149,0.657,640.57,640.02,0.31249023]
[1739313929149,0.657,640.57,640.16,1.13057641]
[1739313931053,0.657,640.57,640.1,1.13057641]
[1739313935653,0.657,640.57,640.17,1.13057641]
[1739313939350,0.657,640.57,640.18,1.13057641]
[1739313941454,0.657,640.57,640.14,1.13057641]
[1739313943759,0.657,640.57,640.16,1.13057641]
[1739313945962,0.657,640.57,640.18,1.13057641]
[1739313948162,0.657,640.57,640.17,1.13057641]
[1739313950768,0.657,640.57,640.25,1.13057641]
[1739313953170,0.657,640.57,640.24,1.13057641]
[1739313957973,0.657,640.57,640.27,1.13057641]
[1739313960777,0.657,640.57,640.29,1.13057641]
[1739313962975,0.657,640.57,640.23,1.13057641]
[1739313964574,0.657,640.57,640.3,1.13057641]
[1739313966078,2.91312342,641.92,640.3,1.13057641]
[1739313966377,1.34840764,641.91,640.3,1.13057641]
[1739313966577,1.34840764,641.9,640.3,1.13057641]
[1739313966773,1.34840764,641.89,640.3,1.13057641]
[1739313967080,1.34840764,641.88,640.3,1.13057641]
[1739313967279,1.34840764,641.87,640.3,1.13057641]
[1739313967480,1.34840764,641.86,640.21,1.13057641]
[1739313967679,1.34840764,641.85,640.21,1.13057641]
[1739313967980,1.34840764,641.84,640.21,1.13057641]
[1739313968279,1.34840764,641.83,640.21,1.13057641]
[1739313968479,1.34840764,641.82,640.21,1.13057641]
[1739313968679,1.34840764,641.81,640.21,1.13057641]
[1739313968880,1.34840764,641.8,640.21,1.13057641]
[1739313969180,1.34840764,641.79,640.21,1.13057641]
[1739313969374,1.34840764,641.78,640.21,1.13057641]
[1739313969578,1.34840764,641.77,640.21,1.13057641]
[1739313969774,1.34840764,641.76,640.21,1.13057641]
[1739313969977,1.34840764,641.75,640.18,1.13057641]
[1739313970178,1.34840764,641.74,640.18,1.13057641]
[1739313970379,1.34877741,641.73,640.18,1.13057641]
[1739313970579,1.34877741,641.72,640.18,1.13057641]
[1739313970780,1.34877741,641.71,640.18,1.13057641]
[1739313970978,1.34877741,641.7,640.18,1.13057641]
[1739313971277,1.34877741,641.69,640.18,1.13057641]
[1739313971480,1.34877741,641.68,640.18,1.13057641]
[1739313971682,1.34877741,641.67,640.18,1.13057641]
[1739313971883,1.34877741,641.66,640.22,1.13057641]
[1739313972085,1.34877741,641.65,640.22,1.13057641]
[1739313972382,1.34877741,641.64,640.22,1.13057641]
[1739313972584,1.34877741,641.63,640.22,1.13057641]
[1739313972778,1.34877741,641.62,640.22,1.13057641]
[1739313972980,1.34877741,641.61,640.22,1.13057641]
[1739313973184,1.34877741,641.6,640.22,1.13057641]
[1739313973384,1.34877741,641.59,640.22,1.13057641]
[1739313973582,1.34877741,641.58,640.22,1.13057641]
[1739313973786,1.34877741,641.57,640.22,1.13057641]
[1739313973988,1.34877741,641.56,640.22,1.13057641]
[1739313974183,1.34877741,641.55,640.22,1.13057641]
[1739313974383,1.34877741,641.54,640.22,1.13057641]
[1739313974583,1.6287115,641.78,640.23,1.13057641]
[1739313974584,1.34877741,641.53,640.23,1.13057641]
[1739313974889,1.34877741,641.52,640.23,1.13057641]
[1739313975087,1.34877741,641.51,640.23,1.13057641]
[1739313975288,1.34877741,641.5,640.23,1.13057641]
[1739313975589,1.34877741,641.49,640.23,1.13057641]
[1739313975789,1.34877741,641.48,640.23,1.13057641]
[1739313975985,1.34935884,641.47,640.23,1.13057641]
[1739313976183,1.6287115,641.78,640.23,1.13057641]
[1739313976184,1.34935884,641.46,640.23,1.13057641]
[1739313976386,1.34935884,641.45,640.23,1.13057641]
[1739313976588,1.34935884,641.44,640.23,1.13057641]
[1739313976783,1.34935884,641.43,640.23,1.13057641]
[1739313977087,1.34935884,641.42,640.23,1.13057641]
[1739313977288,1.34935884,641.41,640.12,1.13057641]
[1739313977483,1.34935884,641.4,640.12,1.13057641]
[1739313977789,1.34935884,641.39,640.12,1.13057641]
[1739313977984,1.34935884,641.38,640.12,1.13057641]
[1739313978185,1.6287115,641.78,640.12,1.13057641]
[1739313978186,1.34960762,641.37,640.12,1.13057641]
[1739313978384,1.34960762,641.36,640.12,1.13057641]
[1739313978589,1.34976208,641.35,640.12,1.13057641]
[1739313978790,1.34976208,641.34,640.12,1.13057641]
[1739313978993,1.34976208,641.33,640.12,1.13057641]
[1739313979185,1.34976208,641.32,640.12,1.13057641]
[1739313979390,1.34976208,641.32,639.15,2.32156329]
[1739313979391,1.34976208,641.31,640.26,1.13057641]
[1739313979592,1.34976208,641.3,640.26,1.13057641]
[1739313979790,1.34976208,641.29,640.26,1.13057641]
[1739313979985,1.34976208,641.28,640.26,1.13057641]
[1739313980191,1.34995531,641.27,640.26,1.13057641]
[1739313980390,1.34995531,641.26,640.26,1.13057641]
[1739313980588,1.34995531,641.25,640.26,1.13057641]
[1739313980789,1.34995531,641.24,640.26,1.13057641]
[1739313980987,1.34995531,641.23,640.26,1.13057641]
[1739313981190,1.34995531,641.22,640.26,1.13057641]
[1739313981390,1.34995531,641.21,640.26,1.13057641]
[1739313981591,1.34995531,641.2,640.26,1.13057641]
[1739313981790,1.34995531,641.19,640.26,1.13057641]
[1739313981986,1.34995531,641.18,640.26,1.13057641]
[1739313982191,1.34995531,641.17,640.26,1.13057641]
[1739313982491,1.34995531,641.16,640.33,1.13057641]
[1739313982692,1.34995531,641.15,640.33,1.13057641]
[1739313982886,1.34995531,641.14,640.33,1.13057641]
[1739313983086,1.34995531,641.13,640.33,1.13057641]
[1739313983289,1.34995531,641.12,640.33,1.13057641]
[1739313983492,1.34995531,641.11,640.33,1.13057641]
[1739313983793,1.34995531,641.1,640.33,1.13057641]
[1739313983993,1.34995531,641.09,640.33,1.13057641]
[1739313984196,1.34995531,641.08,640.33,1.13057641]
[1739313984394,1.34851776,641.07,640.34,1.13057641]
[1739313984588,1.34851776,641.06,640.34,1.13057641]
[1739313984794,1.34851776,641.05,640.34,1.13057641]
[1739313984993,1.34851776,641.04,640.34,1.13057641]
[1739313985195,1.34851776,641.03,640.34,1.13057641]
[1739313985390,6.30331499,641.88,640.34,1.13057641]
[1739313985596,0.657,641.02,640.34,1.13057641]
[1739313987493,0.657,641.02,640.45,1.13057641]
[1739313987693,1.793,641.02,640.45,1.13057641]
[1739313989594,1.793,641.02,640.35,1.13057641]
[1739313992595,1.793,641.02,640.31,1.13057641]
[1739313992799,1.793,641.02,640.32,0.31234382]
[1739313997601,1.136,641.02,640.32,0.31234382]
[1739313998801,0.657,641.01,640.32,0.31234382]
[1739314006607,0.657,641.01,640.35,1.13057641]
[1739314006806,0.657,641.01,640.36,0.31232431]
[1739314008809,0.657,641.01,640.36,1.44290072]
[1739314010410,0.657,641.01,640.36,0.31232431]
[1739314016506,0.657,641.01,640.39,1.13057641]
[1739314021008,0.866,641.04,640.39,1.13057641]
[1739314021415,0.866,641.04,640.51,1.13057641]
[1739314022033,0.657,641.03,640.51,1.13057641]
[1739314026620,0.657,641.03,640.56,1.13057641]
[1739314028620,0.657,641.03,640.61,1.13057641]
[1739314029818,0.657,641.03,640.62,1.13057641]
[1739314031922,0.657,641.03,640.61,1.13057641]
[1739314034218,0.657,641.03,640.53,1.13057641]
[1739314036123,0.657,641.03,640.56,1.13057641]
[1739314039123,0.866,641.04,640.56,1.13057641]
[1739314039525,1.992,641.04,640.56,1.13057641]
[1739314039819,1.992,641.04,640.45,1.13057641]
[1739314040224,0.657,641.03,640.45,1.13057641]
[1739314042725,0.657,641.03,640.42,1.13057641]
[1739314048924,0.657,641.03,640.39,1.13057641]
[1739314051130,0.657,641.03,640.58,1.13057641]
[1739314053531,0.657,641.03,640.6,1.13057641]
[1739314055631,0.657,641.03,640.64,1.13057641]
[1739314058033,0.657,641.03,640.77,1.13057641]
[1739314060033,0.657,641.03,640.78,1.13057641]
[1739314062435,0.657,641.03,640.61,1.13057641]
[1739314064939,0.657,641.03,640.36,0.31232431]
[1739314070448,0.818,641.04,640.36,0.31232431]
[1739314071042,0.939,641.14,640.36,0.31232431]
[1739314071543,0.657,641.13,640.36,0.31232431]
[1739314071948,0.657,641.13,640.43,1.13057641]
[1739314072142,0.657,641.13,640.44,0.3122853]
[1739314074147,0.657,641.13,640.51,1.13057641]
[1739314076151,0.657,641.13,640.52,1.13057641]
[1739314078052,0.657,641.13,640.56,1.13057641]
[1739314080850,0.657,641.13,640.57,1.13057641]
[1739314083255,0.657,641.13,640.5,1.13057641]
[1739314089753,0.657,641.13,640.51,0.31225117]
[1739314090259,0.657,641.13,640.64,1.13057641]
[1739314091654,0.942,641.14,640.64,1.13057641]
[1739314092761,0.657,641.13,640.64,1.13057641]
[1739314092956,0.657,641.13,640.63,1.13057641]
[1739314096161,0.657,641.13,640.67,1.13057641]
[1739314098565,0.657,641.13,640.61,1.13057641]
[1739314104165,0.657,641.13,640.55,1.13057641]
[1739314104467,0.657,641.13,640.56,0.3122268]
[1739314105769,0.832,641.24,640.56,0.3122268]
[1739314106869,0.657,641.23,640.56,0.3122268]
[1739314107071,0.657,641.23,640.57,1.13057641]
[1739314107264,0.657,641.23,640.58,0.31221705]
[1739314108572,0.657,641.23,640.59,1.13057641]
[1739314108771,0.657,641.23,640.59,1.44278858]
[1739314111368,0.657,641.23,640.62,1.13057641]
[1739314112669,0.657,641.23,640.77,1.13057641]
[1739314114875,0.657,641.23,640.8,1.13057641]
[1739314117177,0.657,641.23,640.67,1.13057641]
[1739314118980,0.657,641.23,640.63,1.13057641]
[1739314119171,0.657,641.23,640.63,1.44276909]
[1739314122083,0.657,641.23,640.65,1.13057641]
[1739314122977,0.832,641.24,640.65,1.13057641]
[1739314124081,0.657,641.23,640.65,1.13057641]
[1739314124679,0.64486747,641.23,640.65,1.13057641]
[1739314124880,0.64486747,641.23,640.68,1.13057641]
[1739314126582,0.64486747,641.23,640.68,1.44274473]
[1739314126783,0.64486747,641.23,640.85,1.13057641]
[1739314128679,0.64486747,641.23,640.69,0.31216344]
[1739314128680,0.64486747,641.23,640.8,1.13057641]
[1739314134785,0.64486747,641.23,640.8,1.44268627]
[1739314136882,0.64486747,641.23,640.8,0.31210986]
[1739314149094,0.64486747,641.23,640.86,1.13057641]
[1739314150497,0.64486747,641.23,640.95,1.13057641]
[1739314152897,0.64486747,641.23,640.8,0.31210986]
[1739314153097,1.137,641.34,640.8,0.31210986]
[1739314153298,1.34583979,641.33,640.8,0.31210986]
[1739314153497,1.137,641.34,640.8,0.31210986]
[1739314153697,1.34588595,641.33,640.8,0.31210986]
[1739314153898,1.137,641.34,640.8,0.31210986]
[1739314154097,1.34588611,641.33,640.8,0.31210986]
[1739314154299,1.137,641.34,640.8,0.31210986]
[1739314154499,1.34592327,641.33,640.8,0.31210986]
[1739314154700,1.137,641.34,640.8,0.31210986]
[1739314154898,1.34596581,641.33,640.8,0.31210986]
[1739314155103,1.137,641.34,640.8,0.31210986]
[1739314155297,1.34600207,641.33,640.8,0.31210986]
[1739314155503,1.34606751,641.32,640.8,0.31210986]
[1739314155697,1.137,641.34,640.8,0.31210986]
[1739314155898,1.34607003,641.33,640.8,0.31210986]
[1739314156105,1.34607003,641.32,640.8,0.31210986]
[1739314156305,1.137,641.34,640.8,0.31210986]
[1739314156600,1.34614549,641.33,640.8,0.31210986]
[1739314156905,1.34614549,641.32,640.8,0.31210986]
[1739314157109,0.645,641.33,640.8,0.31210986]
[1739314157306,1.34617769,641.32,640.8,0.31210986]
[1739314157609,0.645,641.33,640.8,0.31210986]
[1739314159803,0.645,641.33,640.84,1.13057641]
[1739314163502,0.645,641.33,640.9,1.13057641]